Workbook

Sheet 汇总表
A2: 2025年12月全县精简退职老职工生活救济费发放统计表
E3: 单位：人 元
A4: 单位：人、元
A5: 乡 镇 | B5: 人 数 | C5: 金 额 | D5: 乡 镇 | E5: 人 数 | F5: 金 额
A6: 1.孝坪镇 | B6: 16 | C6: =B6*100 -> 1600.00 | D6: 13.罗子山瑶族乡 | E6: 0 | F6: =E6*100 -> 0.00
A7: 2.大水田乡 | B7: 3 | C7: =B7*100 -> 300.00 | D7: 14.辰阳镇 | E7: 16 | F7: =E7*100 -> 1600.00
A8: 3.黄溪口镇 | B8: 3 | C8: 300.00 | D8: 15.柿溪乡 | E8: 2 | F8: 200.00
A9: 4.潭湾镇 | B9: 31 | C9: 3100.00 | D9: 16.桥头溪乡 | E9: 5 | F9: 500.00
A10: 5.锦滨镇 | B10: 10 | C10: 1000.00 | D10: 17.龙泉岩乡 | E10: 8 | F10: 800.00
A11: 6.船溪乡 | B11: 3 | C11: 300.00 | D11: 18.上蒲溪瑶族乡 | E11: 1 | F11: 100.00
A12: 7.火马冲镇 | B12: 19 | C12: 1900.00 | D12: 19.长田湾乡 | E12: 2 | F12: 200.00
A13: 8.后塘瑶族乡 | B13: 2 | C13: 200.00 | D13: 20.田湾镇 | E13: 3 | F13: 300.00
A14: 9.安坪镇 | B14: 20 | C14: 2000.00 | D14: 21.小龙门乡 | E14: 4 | F14: 400.00
A15: 10.修溪镇 | B15: 8 | C15: 800.00 | D15: 22.苏木溪瑶族乡 | E15: 0 | F15: 0.00
A16: 11.龙头庵乡 | B16: 10 | C16: 1000.00 | D16: 23.谭家场乡 | E16: 0 | F16: 0.00
A17: 12.仙人湾瑶族乡 | B17: 7 | C17: 700.00
A18: 小 计 | B18: =SUM(B6:B17) -> 132 | C18: =SUM(C6:C17) -> 13200.00 | E18: =SUM(E6:E17) -> 41 | F18: =SUM(F6:F17) -> 4100.00
A19: 合 计 | E19: =B18+E18 -> 173 | F19: =C18+F18 -> 17300.00
A21: 制表： 审核： 审批：

Sheet 花名册
A1: 2025年12月全县精简退职老职工生活救济费发放统计表
A3: 单位名称 | B3: 姓 名 | C3: 编号 | D3: 性别 | E3: 住 址 | F3: 人口 | G3: 金额元 | H3: 备注
A4: 1.孝坪镇 | B4: 胡远靠 | C4: 1 | D4: 男 | E4: 球岔村二组 | F4: 1 | G4: 100 | H4: 精简
B5: 刘席珍 | C5: 2 | D5: 女 | E5: 孝矿社区一组 | F5: 1 | G5: 100 | H5: 精简
B6: 姚慧如 | C6: 3 | D6: 女 | E6: 方田村六组 | F6: 1 | G6: 100 | H6: 精简
B7: 李育胜 | C7: 4 | D7: 男 | E7: 古寨村五组 | F7: 1 | G7: 100 | H7: 精简
B8: 姚祖金 | C8: 5 | D8: 男 | E8: 球岔村七组 | F8: 1 | G8: 100 | H8: 精简
B9: 李圣兵 | C9: 6 | D9: 男 | E9: 罗依溪村一组 | F9: 1 | G9: 100 | H9: 精简
B10: 向景宣 | C10: 7 | D10: 男 | E10: 塘里村一组 | F10: 1 | G10: 100 | H10: 精简
B11: 刘洪斌 | C11: 8 | D11: 女 | E11: 江东村十七组 | F11: 1 | G11: 100 | H11: 精简
B12: 龙翠香 | C12: 9 | D12: 女 | E12: 孝矿社区二组 | F12: 1 | G12: 100 | H12: 精简
B13: 田方兴 | C13: 10 | D13: 男 | E13: 千里坪村六组 | F13: 1 | G13: 100 | H13: 精简
B14: 李自学 | C14: 11 | D14: 男 | E14: 古寨村五组 | F14: 1 | G14: 100 | H14: 精简
B15: 向会如 | C15: 12 | D15: 女 | E15: 塘里村六组 | F15: 1 | G15: 100 | H15: 精简
B16: 杨仕玉 | C16: 13 | D16: 男 | E16: 板桥村三组 | F16: 1 | G16: 100 | H16: 精简
B17: 娄世朋 | C17: 14 | D17: 男 | E17: 中溪村六组 | F17: 1 | G17: 100 | H17: 精简
B18: 肖守俊 | C18: 15 | D18: 男 | E18: 坪里村八组 | F18: 1 | G18: 100 | H18: 精简
B19: 涂才福 | C19: 16 | D19: 男 | E19: 中溪村一组 | F19: 1 | G19: 100 | H19: 精简
A20: 小计 | C20: 16 | G20: =SUM(G4:G19) -> 1600
A22: 2.大水田乡 | B22: 贺秀英 | C22: 1 | D22: 男 | E22: 大水田村4组 | F22: 1 | G22: 100 | H22: 精简
B23: 雷后亮 | C23: 2 | D23: 男 | E23: 垅山村九组 | F23: 1 | G23: 100 | H23: 精简
B24: 刘明生 | C24: 3 | D24: 男 | E24: 中庄村7组 | F24: 1 | G24: 100 | H24: 精简
A25: 小计 | C25: 3 | G25: =SUM(G22:G24) -> 300
A27: 3.黄溪口镇 | B27: 廖家寿 | C27: 1 | D27: 男 | E27: 芙蓉村1组 | F27: 1 | G27: 100 | H27: 精简
B28: 米贤伍 | C28: 2 | D28: 男 | E28: 芙蓉村14组 | F28: 1 | G28: 100 | H28: 精简
B29: 米贤楚 | C29: 3 | D29: 男 | E29: 芙蓉村15组 | F29: 1 | G29: 100 | H29: 精简
A30: 小计 | C30: 3 | G30: =SUM(G27:G29) -> 300
A32: 4.潭湾镇 | B32: 黄溪生 | C32: 1 | D32: 男 | E32: 石牌村8组 | F32: 1 | G32: 100 | H32: 精简
B33: 谢申发 | C33: 2 | D33: 男 | E33: 柏林村２组 | F33: 1 | G33: 100 | H33: 精简
B34: 张圣国 | C34: 3 | D34: 男 | E34: 长坡新村2组 | F34: 1 | G34: 100 | H34: 精简
B35: 杨兴贵 | C35: 4 | D35: 男 | E35: 麻田村4组 | F35: 1 | G35: 100 | H35: 精简
B36: 蒋全池 | C36: 5 | D36: 男 | E36: 石牌村8组 | F36: 1 | G36: 100 | H36: 精简
B37: 张发补 | C37: 6 | D37: 男 | E37: 西庄坪村4组 | F37: 1 | G37: 100 | H37: 精简
B38: 李继贤 | C38: 7 | D38: 男 | E38: 报木洞村1组 | F38: 1 | G38: 100 | H38: 精简
B39: 吴德玉 | C39: 8 | D39: 男 | E39: 西庄坪村８组 | F39: 1 | G39: 100 | H39: 精简
B40: 李自成 | C40: 9 | D40: 男 | E40: 报木洞村7组 | F40: 1 | G40: 100 | H40: 精简
B41: 李继兴 | C41: 10 | E41: 报木洞村4组 | F41: 1 | G41: 100 | H41: 精简
B42: 刘寸兰 | C42: 11 | E42: 报木洞村7组 | F42: 1 | G42: 100 | H42: 精简
B43: 唐正端 | C43: 12 | E43: 居委会1组 | F43: 1 | G43: 100 | H43: 精简
B44: 张瑞英 | C44: 13 | E44: 南庄坪村3组 | F44: 1 | G44: 100 | H44: 精简
B45: 谭必刚 | C45: 14 | E45: 南庄坪村19组 | F45: 1 | G45: 100 | H45: 精简
B46: 莫才友 | C46: 15 | E46: 南庄坪村3组 | F46: 1 | G46: 100 | H46: 精简
B47: 毕应清 | C47: 16 | E47: 桥湾村11组 | F47: 1 | G47: 100 | H47: 精简
B48: 谭寸珍 | C48: 17 | E48: 桥湾村3组 | F48: 1 | G48: 100 | H48: 精简
B49: 付美英 | C49: 18 | E49: 桥湾村9组 | F49: 1 | G49: 100 | H49: 精简
B50: 米世艮 | C50: 19 | E50: 三甲塘村10组 | F50: 1 | G50: 100 | H50: 精简
B51: 欧光金 | C51: 20 | E51: 杉林村4组 | F51: 1 | G51: 100 | H51: 精简
B52: 张世森 | C52: 21 | E52: 石牌村5组 | F52: 1 | G52: 100 | H52: 精简
B53: 张福茂 | C53: 22 | E53: 石牌村6组 | F53: 1 | G53: 100 | H53: 精简
B54: 王妹 | C54: 23 | E54: 双桥村8组 | F54: 1 | G54: 100 | H54: 精简
B55: 谢申友 | C55: 24 | E55: 覃家塘村17组 | F55: 1 | G55: 100 | H55: 精简
B56: 王义昌 | C56: 25 | E56: 西庄坪村22组 | F56: 1 | G56: 100 | H56: 精简
B57: 孙子杰 | C57: 26 | E57: 西庄坪村5组 | F57: 1 | G57: 100 | H57: 精简
B58: 孙永必 | C58: 27 | E58: 西庄坪村6组 | F58: 1 | G58: 100 | H58: 精简
B59: 刘元发 | C59: 28 | E59: 园家坪村6组 | F59: 1 | G59: 100 | H59: 精简
B60: 欧永信 | C60: 29 | E60: 柞溪村10组 | F60: 1 | G60: 100 | H60: 精简
B61: 欧兰祥 | C61: 30 | E61: 柞溪村10组 | F61: 1 | G61: 100 | H61: 精简
B62: 龚代科 | C62: 31 | D62: 男 | E62: 王桥坪村 | F62: 1 | G62: 100 | H62: 精简
A63: 小计 | C63: 31 | G63: =SUM(G32:G62) -> 3100
A65: 5.锦滨镇 | B65: 孙纯林 | C65: 1 | D65: 男 | E65: 龙头垴村十三组 | F65: 1 | G65: 100 | H65: 精简
B66: 石美英 | C66: 2 | D66: 女 | E66: 紫金山村一组 | F66: 1 | G66: 100 | H66: 精简
B67: 谢伯利 | C67: 3 | D67: 男 | E67: 龙头垴村十七组 | F67: 1 | G67: 100 | H67: 精简
B68: 唐长杨 | C68: 4 | D68: 男 | E68: 石碧村六组 | F68: 1 | G68: 100 | H68: 精简
B69: 孙叙傲 | C69: 5 | D69: 男 | E69: 石碧村七组 | F69: 1 | G69: 100 | H69: 精简
B70: 刘凤英 | C70: 6 | D70: 女 | E70: 华中社区三组 | F70: 1 | G70: 100 | H70: 精简
B71: 唐正生 | C71: 7 | D71: 男 | E71: 龙头垴村六组 | F71: 1 | G71: 100 | H71: 精简
B72: 米云娥 | C72: 8 | D72: 男 | E72: 装粮埠村四组 | F72: 1 | G72: 100 | H72: 精简
B73: 刘青秀 | C73: 9 | D73: 女 | E73: 石碧村十九组 | F73: 1 | G73: 100 | H73: 精简
B74: 金继顺 | C74: 10 | D74: 男 | E74: 紫金山村三组 | F74: 1 | G74: 100 | H74: 精简
A75: 小计 | C75: 10 | G75: =SUM(G65:G74) -> 1000
A77: 6.船溪乡 | B77: 向太铁 | C77: 1 | D77: 男 | E77: 兵马冲村12组 | F77: 1 | G77: 100 | H77: 精简
B78: 印运忠 | C78: 2 | D78: 男 | E78: 长坡村7组 | F78: 1 | G78: 100 | H78: 精简
B79: 金宏英 | C79: 3 | D79: 女 | E79: 田头坪村4组 | F79: 1 | G79: 100 | H79: 精简
A80: 小计 | C80: 3 | G80: =SUM(G77:G79) -> 300
A82: 7.火马冲镇 | B82: 郑茂均 | C82: 1 | D82: 男 | E82: 兰家湾村3组 | F82: 1 | G82: 100 | H82: 精简
B83: 张贤进 | C83: 2 | D83: 男 | E83: 沙堆村5组 | F83: 1 | G83: 100 | H83: 精简
B84: 张圣波 | C84: 3 | D84: 男 | E84: 火马冲村3组 | F84: 1 | G84: 100 | H84: 精简
B85: 陈秀富 | C85: 4 | D85: 男 | E85: 淡家坪村9组 | F85: 1 | G85: 100 | H85: 精简
B86: 张爱华 | C86: 5 | D86: 女 | E86: 寺前居委会五组 | F86: 1 | G86: 100 | H86: 精简
B87: 王志元 | C87: 6 | D87: 男 | E87: 淡家坪村11组 | F87: 1 | G87: 100 | H87: 精简
B88: 万兴发 | C88: 7 | D88: 男 | E88: 郑家坪村一组 | F88: 1 | G88: 100 | H88: 精简
B89: 郑茂晚 | C89: 8 | D89: 男 | E89: 兰家湾村七组 | F89: 1 | G89: 100 | H89: 精简
B90: 杨好珍 | C90: 9 | D90: 男 | E90: 火马冲村五组 | F90: 1 | G90: 100 | H90: 精简
B91: 张理贵 | C91: 10 | D91: 男 | E91: 火马冲村六组 | F91: 1 | G91: 100 | H91: 精简
B92: 黄八妹 | C92: 11 | D92: 女 | E92: 火马冲居委会六组 | F92: 1 | G92: 100 | H92: 精简
B93: 刘运文 | C93: 12 | D93: 男 | E93: 大桥村八组 | F93: 1 | G93: 100 | H93: 精简
B94: 胡名题 | C94: 13 | D94: 男 | E94: 万寿村十一组 | F94: 1 | G94: 100 | H94: 精简
B95: 姚源忠 | C95: 14 | D95: 男 | E95: 兴隆村三组 | F95: 1 | G95: 100 | H95: 精简
B96: 谭世站 | C96: 15 | D96: 男 | E96: 柑子园村十三组 | F96: 1 | G96: 100 | H96: 精简
B97: 龚开海 | C97: 16 | D97: 男 | E97: 山岳坡村十组 | F97: 1 | G97: 100 | H97: 精简
B98: 刘光泽 | C98: 17 | D98: 男 | E98: 凉水井村四组 | F98: 1 | G98: 100 | H98: 精简
B99: 陈胜秀 | C99: 18 | D99: 女 | E99: 寺前居委会五组 | F99: 1 | G99: 100 | H99: 精简
B100: 张珍生 | C100: 19 | D100: 女 | E100: 寺前居委会五组 | F100: 1 | G100: 100 | H100: 精简
A101: 小计 | C101: 19 | G101: =SUM(G82:G100) -> 1900
A103: 8.后塘乡 | B103: 舒大法 | C103: 1 | D103: 男 | E103: 前塘村8组 | F103: 1 | G103: 100 | H103: 精简
B104: 魏臣社 | C104: 2 | D104: 男 | E104: 莲花村9组 | F104: 1 | G104: 100 | H104: 精简
A105: 小计 | C105: 2 | G105: =SUM(G103:G104) -> 200
A107: 9.安坪镇 | B107: 杨通全 | C107: 1 | D107: 男 | E107: 王家洲七组 | F107: 1 | G107: 100 | H107: 精简
B108: 周白娥 | C108: 2 | D108: 女 | E108: 石马湾村九组 | F108: 1 | G108: 100 | H108: 精简
B109: 余绍堂 | C109: 3 | D109: 男 | E109: 鸡鸣溪村六组 | F109: 1 | G109: 100 | H109: 精简
B110: 谢申银 | C110: 4 | D110: 男 | E110: 鸡鸣溪村十五组 | F110: 1 | G110: 100 | H110: 精简
B111: 郑运妹 | C111: 5 | D111: 女 | E111: 九岩坪村十一组 | F111: 1 | G111: 100 | H111: 精简
B112: 刘满娥 | C112: 6 | D112: 女 | E112: 安坪村五组 | F112: 1 | G112: 100 | H112: 精简
B113: 欧清玉 | C113: 7 | D113: 女 | E113: 蛮田垅村八组 | F113: 1 | G113: 100 | H113: 精简
B114: 向秀贵 | C114: 8 | D114: 男 | E114: 蛮田垅村八组 | F114: 1 | G114: 100 | H114: 精简
B115: 杨昌松 | C115: 9 | D115: 男 | E115: 蒋家坪村一组 | F115: 1 | G115: 100 | H115: 精简
B116: 郑方俭 | C116: 10 | D116: 男 | E116: 九岩坪村八组 | F116: 1 | G116: 100 | H116: 精简
B117: 欧清平 | C117: 11 | D117: 男 | E117: 东冲湾村十八组 | F117: 1 | G117: 100 | H117: 精简
B118: 刘圣云 | C118: 12 | D118: 男 | E118: 石马湾村一组 | F118: 1 | G118: 100 | H118: 精简
B119: 刘明文 | C119: 13 | D119: 男 | E119: 石马湾村七组 | F119: 1 | G119: 100 | H119: 精简
B120: 滕树胜 | C120: 14 | D120: 男 | E120: 辛木湾村四组 | F120: 1 | G120: 100 | H120: 精简
B121: 向玉方 | C121: 15 | D121: 男 | E121: 辛木湾村七组 | F121: 1 | G121: 100 | H121: 精简
B122: 钟金爱 | C122: 16 | D122: 女 | E122: 辛木湾村二组 | F122: 1 | G122: 100 | H122: 精简
B123: 周福来 | C123: 17 | D123: 男 | E123: 深冲湾村九组 | F123: 1 | G123: 100 | H123: 精简
B124: 简满寸 | C124: 18 | D124: 女 | E124: 红敏村一组 | F124: 1 | G124: 100 | H124: 精简
B125: 王昌良 | C125: 19 | D125: 男 | E125: 红敏村十组 | F125: 1 | G125: 100 | H125: 精简
B126: 钟芳玉 | C126: 20 | D126: 女 | E126: 翁鸡坪村三组 | F126: 1 | G126: 100 | H126: 精简
A127: 小计 | C127: 20 | G127: =SUM(G107:G126) -> 2000
A129: 10.修溪镇 | B129: 周秀英 | C129: 1 | D129: 女 | E129: 荞子湾村五组 | F129: 1 | G129: 100 | H129: 精简
B130: 许章礼 | C130: 2 | D130: 男 | E130: 黄埠村五组 | F130: 1 | G130: 100 | H130: 精简
B131: 刘明来 | C131: 3 | D131: 男 | E131: 木洲村八组 | F131: 1 | G131: 100 | H131: 精简
B132: 欧阳兴玉 | C132: 4 | D132: 男 | E132: 木洲村七组 | F132: 1 | G132: 100 | H132: 精简
B133: 万远六 | C133: 5 | D133: 男 | E133: 万家垴村六组 | F133: 1 | G133: 100 | H133: 精简
B134: 余致平 | C134: 6 | D134: 男 | E134: 黄埠村三组 | F134: 1 | G134: 100 | H134: 精简
B135: 欧阳安家 | C135: 7 | D135: 男 | E135: 木洲村四组 | F135: 1 | G135: 100 | H135: 精简
B136: 欧阳吕黑 | C136: 8 | D136: 男 | E136: 木洲村五组 | F136: 1 | G136: 100 | H136: 精简
A137: 小计 | C137: 8 | G137: =SUM(G129:G136) -> 800
A139: 11.龙头庵乡 | B139: 米长生 | C139: 1 | D139: 男 | E139: 塘冲村2组 | F139: 1 | G139: 100 | H139: 精简
B140: 米久先 | C140: 2 | D140: 男 | E140: 石溪口村8组 | F140: 1 | G140: 100 | H140: 精简
B141: 刘景发 | C141: 3 | D141: 男 | E141: 戴家坪村10组 | F141: 1 | G141: 100 | H141: 精简
B142: 米久全 | C142: 4 | D142: 男 | E142: 龙头庵村4组 | F142: 1 | G142: 100 | H142: 精简
B143: 肖典飞 | C143: 5 | D143: 男 | E143: 龙头庵村1组 | F143: 1 | G143: 100 | H143: 精简
B144: 米先保 | C144: 6 | D144: 男 | E144: 中溪口村5组 | F144: 1 | G144: 100 | H144: 精简
B145: 肖从林 | C145: 7 | D145: 男 | E145: 雪峰村10组 | F145: 1 | G145: 100 | H145: 精简
B146: 尹德录 | C146: 8 | D146: 男 | E146: 雪峰村1组 | F146: 1 | G146: 100 | H146: 精简
B147: 刘景龙 | C147: 9 | D147: 男 | E147: 大村村23组 | F147: 1 | G147: 100 | H147: 精简
B148: 米久顶 | C148: 10 | D148: 男 | E148: 龙头庵村16组 | F148: 1 | G148: 100 | H148: 精简
A149: 小计 | C149: 10 | G149: =SUM(G139:G148) -> 1000
A151: 12.仙人湾乡 | B151: 李泽有 | C151: 1 | D151: 男 | E151: 溪台村六组 | F151: 1 | G151: 100 | H151: 精简
B152: 肖守伍 | C152: 2 | D152: 男 | E152: 高鼓塘村二组 | F152: 1 | G152: 100 | H152: 精简
B153: 包昌金 | C153: 3 | D153: 男 | E153: 布村五组 | F153: 1 | G153: 100 | H153: 精简
B154: 米仁望 | C154: 4 | D154: 男 | E154: 布村四组 | F154: 1 | G154: 100 | H154: 精简
B155: 汪克周 | C155: 5 | D155: 男 | E155: 浅水村七组 | F155: 1 | G155: 100 | H155: 精简
B156: 吕昌球 | C156: 6 | D156: 男 | E156: 龙呼溪村四组 | F156: 1 | G156: 100 | H156: 精简
B157: 汪克兵 | C157: 7 | D157: 男 | E157: 罗家坪村一组 | F157: 1 | G157: 100 | H157: 精简
A158: 小计 | C158: 7 | G158: =SUM(G151:G157) -> 700
A160: 13.罗子山乡 | B160: 0
A161: 小计 | C161: 0 | G161: 0
A163: 14.辰阳镇 | B163: 程光书 | C163: 1 | D163: 男 | E163: 锦岩村二组 | F163: 1 | G163: 100 | H163: 精简
B164: 龚玉兰 | C164: 2 | D164: 女 | E164: 柳树湾一组 | F164: 1 | G164: 100 | H164: 精简
B165: 罗桂香 | C165: 3 | D165: 女 | E165: 柘坪一组 | F165: 1 | G165: 100 | H165: 精简
B166: 陈家友 | C166: 4 | D166: 男 | E166: 东星社区二组 | F166: 1 | G166: 100 | H166: 精简
B167: 诸文银 | C167: 5 | D167: 男 | E167: 桑木桥村九组 | F167: 1 | G167: 100 | H167: 精简
B168: 王英 | C168: 6 | D168: 女 | E168: 向阳村无组别 | F168: 1 | G168: 100 | H168: 精简
B169: 刘明俊 | C169: 7 | D169: 男 | E169: 柘坪村一组 | F169: 1 | G169: 100 | H169: 精简
B170: 罗尚满 | C170: 8 | D170: 男 | E170: 锦岩村五组 | F170: 1 | G170: 100 | H170: 精简
B171: 朱宏求 | C171: 9 | D171: 男 | E171: 军屯村二组 | F171: 1 | G171: 100 | H171: 精简
B172: 程光忠 | C172: 10 | D172: 男 | E172: 锦岩村二组 | F172: 1 | G172: 100 | H172: 精简
B173: 姚元发 | C173: 11 | D173: 男 | E173: 大洑潭村一组 | F173: 1 | G173: 100 | H173: 精简
B174: 刘杏英 | C174: 12 | D174: 女 | E174: 桑木桥村一组 | F174: 1 | G174: 100 | H174: 精简
B175: 胡昌英 | C175: 13 | D175: 男 | E175: 王家坪村七组 | F175: 1 | G175: 100 | H175: 精简
B176: 薛昌友 | C176: 14 | D176: 男 | E176: 大坪村5组 | F176: 1 | G176: 100 | H176: 精简
B177: 杨慧英 | C177: 15 | D177: 男 | E177: 东星社区一组 | F177: 1 | G177: 100 | H177: 精简
B178: 段玉珍 | C178: 16 | D178: 女 | E178: 东风社区2组 | F178: 1 | G178: 100 | H178: 精简
A179: 小计 | C179: 16 | G179: =SUM(G163:G178) -> 1600
A181: 15.柿溪乡 | B181: 莫伯清 | C181: 1 | D181: 男 | E181: 稠木湾村1组 | F181: 1 | G181: 100 | H181: 精简
B182: 傅圣勇 | C182: 2 | D182: 男 | E182: 傅家湾村1组 | F182: 1 | G182: 100 | H182: 精简
A183: 小计 | C183: 2 | G183: =SUM(G181:G182) -> 200
A185: 16.桥头溪乡 | B185: 张文光 | C185: 1 | D185: 男 | E185: 蛇垅村12组 | F185: 1 | G185: 100 | H185: 精简
B186: 李铁哇 | C186: 2 | D186: 男 | E186: 株木冲村2组 | F186: 1 | G186: 100 | H186: 精简
B187: 张应铁 | C187: 3 | D187: 男 | E187: 梅洲村3组 | F187: 1 | G187: 100 | H187: 精简
B188: 李银秀 | C188: 4 | D188: 女 | E188: 大禾田村5 | F188: 1 | G188: 100 | H188: 精简
B189: 邱道付 | C189: 5 | D189: 男 | E189: 梅洲村3组 | F189: 1 | G189: 100 | H189: 精简
A190: 小计 | C190: 5 | G190: =SUM(G185:G189) -> 500
A192: 17.龙泉岩乡 | B192: 夏占秀 | C192: 1 | D192: 男 | E192: 夏家坪村5组 | F192: 1 | G192: 100 | H192: 精简
B193: 张付县 | C193: 2 | D193: 男 | E193: 刘家坪村13组 | F193: 1 | G193: 100 | H193: 精简
B194: 张福连 | C194: 3 | D194: 男 | E194: 刘家坪村15组 | F194: 1 | G194: 100 | H194: 精简
B195: 梁亨菊 | C195: 4 | D195: 女 | E195: 刘家坪村15组 | F195: 1 | G195: 100 | H195: 精简
B196: 高和英 | C196: 5 | D196: 女 | E196: 板溪村5组 | F196: 1 | G196: 100 | H196: 精简
B197: 张玉贵 | C197: 6 | D197: 男 | E197: 店边湾村4组 | F197: 1 | G197: 100 | H197: 精简
B198: 李春长 | C198: 7 | D198: 女 | E198: 龙泉岩村16组 | F198: 1 | G198: 100 | H198: 精简
B199: 熊成欢 | C199: 8 | D199: 男 | E199: 金家坳村1组 | F199: 1 | G199: 100 | H199: 精简
A200: 小计 | C200: 8 | G200: =SUM(G192:G199) -> 800
A202: 18.上蒲溪乡 | B202: 米栾英 | C202: 1 | D202: 女 | E202: 宝树坪村5组 | F202: 1 | G202: 100 | H202: 精简
A203: 小计 | C203: 1 | G203: =SUM(G202:G202) -> 100
A205: 19.长田湾乡 | B205: 刘兰寸 | C205: 1 | D205: 女 | E205: 水路坪村5组 | F205: 1 | G205: 100 | H205: 精简
B206: 方世初 | C206: 2 | D206: 男 | E206: 长田湾村2组 | F206: 1 | G206: 100 | H206: 精简
A207: 小计 | C207: 2 | G207: =SUM(G205:G206) -> 200
A209: 20.田湾镇 | B209: 向英强 | C209: 1 | D209: 男 | E209: 杨梅坳村1组 | F209: 1 | G209: 100 | H209: 精简
B210: 聂行斌 | C210: 2 | D210: 男 | E210: 杨梅坳村6组 | F210: 1 | G210: 100 | H210: 精简
B211: 向元芝 | C211: 3 | D211: 女 | E211: 乌金村4组 | F211: 1 | G211: 100 | H211: 精简
A212: 小计 | C212: 3 | G212: =SUM(G209:G211) -> 300
A214: 21.小龙门乡 | B214: 陈申满 | C214: 1 | D214: 男 | E214: 小龙门村1组 | F214: 1 | G214: 100 | H214: 精简
B215: 陈行科 | C215: 2 | D215: 男 | E215: 喇坪村2组 | F215: 1 | G215: 100 | H215: 精简
B216: 叶爱珍 | C216: 3 | D216: 女 | E216: 小龙门村1组 | F216: 1 | G216: 100 | H216: 精简
B217: 雷素珍 | C217: 4 | D217: 女 | E217: 唐家湾村6组 | F217: 1 | G217: 100 | H217: 精简
A218: 小计 | C218: 4 | G218: =SUM(G214:G217) -> 400
A220: 22.苏木溪乡 | C220: 0 | G220: 0
A222: 23.谭家场乡 | C222: 0 | G222: 0
A224: 总合计 | C224: =C20+C25+C30+C63+C75+C80+C101+C105+C127+C137+C149+C158+C179+C183+C190+C200+C203+C207+C212+C218 -> 173 | G224: =G20+G25+G30+G63+G75+G80+G101+G105+G127+G137+G149+G158+G179+G183+G190+G200+G203+G207+G212+G218 -> 17300
